bitfinex/quotes_SOLUSD_20250416
["timestamp","ask_amount","ask_price","bid_price","bid_amount"]
[1744781630733,23.3535636,124.74,124.69,23.3535636]
[1744781630935,0.063,124.75,124.69,23.3535636]
[1744781631124,23.4165636,124.75,124.7,23.3535636]
[1744781631334,23.3535636,124.74,124.69,24.9705636]
[1744781632745,0.063,124.75,124.7,8.01924619]
[1744781633050,23.3535636,124.74,124.7,8.01924619]
[1744781633225,0.063,124.75,124.72,23.3535636]
[1744781634323,0.063,124.75,124.74,23.3535636]
[1744781634521,0.063,124.75,124.74,29.5178636]
[1744781634743,0.063,124.75,124.74,37.53453828]
[1744781635741,0.063,124.75,124.74,56.18418714]
[1744781635938,0.063,124.75,124.74,57.68418714]
[1744781636136,0.063,124.75,124.74,81.03775074]
[1744781636338,0.063,124.76,124.74,81.03775074]
[1744781636531,0.063,124.77,124.75,68.00321246]
[1744781636735,0.063,124.77,124.76,39.3535636]
[1744781636935,0.063,124.77,124.76,47.36895314]
[1744781637341,0.063,124.8,124.78,18.64964886]
[1744781637529,0.063,124.8,124.79,42.00321246]
[1744781639344,0.063,124.8,124.79,56.24507507]
[1744781640527,0.063,124.81,124.8,42.00321246]
[1744781640733,0.063,124.81,124.8,65.35677606]
[1744781640933,0.063,124.82,124.8,65.35677606]
[1744781641133,0.063,124.83,124.82,18.64964886]
[1744781641332,0.063,124.83,124.82,92.01474907]
[1744781641533,0.063,124.84,124.82,93.52894907]
[1744781641734,0.063,124.84,124.83,42.00321246]
[1744781643147,0.063,124.84,124.83,50.01410727]
[1744781644659,0.063,124.91,124.86,49.3535636]
[1744781644841,0.063,124.91,124.86,68.00321246]
[1744781645348,0.063,124.91,124.86,76.0121825]
[1744781650367,0.063,124.91,124.87,20.29984886]
[1744781650664,0.063,124.91,124.9,48.44441246]
[1744781651160,0.063,124.91,124.89,18.64964886]
[1744781651461,23.4165636,124.91,124.87,6.4412]
[1744781651764,0.063,124.91,124.88,23.3535636]
[1744781652239,0.063,124.91,124.89,8.0070462]
[1744781652647,23.4165636,124.91,124.89,8.0070462]
[1744781653165,0.063,124.91,124.89,8.0070462]
[1744781655673,0.063,124.91,124.89,31.3606098]
[1744781656054,0.063,124.91,124.9,23.3535636]
[1744781656271,0.063,124.91,124.9,42.00321246]
[1744781656456,0.063,124.91,124.9,50.00961758]
[1744781657558,0.063,124.91,124.9,8.00640512]
[1744781658442,0.063,124.91,124.9,26.65605398]
[1744781658646,0.063,124.91,124.9,50.00961758]
[1744781659080,0.063,124.91,124.9,8.00640512]
[1744781659646,0.063,124.91,124.9,31.35996872]
[1744781659856,0.063,124.91,124.9,8.00640512]
[1744781660773,0.063,124.91,124.89,8.0067756]
[1744781661070,23.4165636,124.91,124.88,8.00768372]
[1744781661273,23.3535636,124.9,124.87,8.00815059]
[1744781661647,23.4165636,124.91,124.87,8.00815059]
[1744781662267,23.3535636,124.88,124.85,15.98]
[1744781662583,23.3535636,124.86,124.85,15.98]
[1744781662955,23.3535636,124.86,124.83,0.063]
[1744781663160,23.3535636,124.85,124.83,8.07381544]
[1744781663467,23.3535636,124.86,124.83,8.07381544]
[1744781663665,8.00640512,124.9,124.83,8.07381544]
[1744781663870,23.3535636,124.87,124.83,8.07381544]
[1744781664258,14.3366169,124.91,124.83,51.45461608]
[1744781664464,14.3366169,124.91,124.85,8.00961153]
[1744781664781,23.3535636,124.89,124.85,8.00961153]
[1744781664975,23.3535636,124.88,124.84,8.00995972]
[1744781665279,23.3535636,124.87,124.84,8.00995972]
[1744781665957,23.3535636,124.87,124.83,8.07389481]
[1744781666159,23.3535636,124.88,124.83,51.45469545]
[1744781666463,23.3535636,124.89,124.84,23.3535636]
[1744781666672,23.3535636,124.88,124.83,51.45469545]
[1744781667967,23.3535636,124.89,124.83,51.45469545]
[1744781668482,23.3535636,124.88,124.83,51.45469545]
[1744781668653,23.3535636,124.88,124.83,28.10113185]
[1744781668854,23.3535636,124.88,124.83,51.45469545]
[1744781669182,23.3535636,124.89,124.83,51.45469545]
[1744781669954,23.3535636,124.88,124.83,51.45469545]
[1744781671078,23.3535636,124.89,124.83,51.45469545]
[1744781671658,23.3535636,124.88,124.83,51.45469545]
[1744781672776,23.3535636,124.85,124.83,0.063]
[1744781672983,23.3535636,124.84,124.83,0.063]
[1744781673281,14.55616863,124.86,124.83,0.063]
[1744781673478,14.55616863,124.87,124.83,0.063]
[1744781673865,14.55616863,124.88,124.83,0.063]
[1744781674272,26.0,124.89,124.83,0.063]
[1744781674472,14.55616863,124.88,124.83,14.61916863]
[1744781674783,14.55616863,124.88,124.84,8.01025312]
[1744781675462,14.55616863,124.87,124.84,8.01025312]
[1744781675764,14.55616863,124.88,124.84,8.01025312]
[1744781675965,26.0,124.89,124.84,8.01025312]
[1744781675966,14.55616863,124.89,124.84,42.59205455]
[1744781677164,14.61916863,124.91,124.86,14.55616863]
[1744781677986,0.063,124.91,124.86,14.55616863]
[1744781678284,0.063,124.91,124.87,14.55616863]
[1744781678992,14.55616863,124.9,124.85,34.80141749]
[1744781679174,14.55616863,124.9,124.86,8.00897004]
[1744781680486,14.61916863,124.91,124.86,22.56513867]
[1744781681278,14.61916863,124.91,124.86,42.58756378]
[1744781681791,0.063,124.91,124.87,14.55616863]
[1744781682466,14.61916863,124.91,124.86,42.58756378]
[1744781682671,14.61916863,124.91,124.86,8.00897004]
[1744781682672,14.55616863,124.89,124.86,8.00897004]
[1744781683467,14.55616863,124.9,124.86,8.00897004]
[1744781685186,14.55616863,124.89,124.85,8.00961153]
[1744781685389,14.55616863,124.88,124.85,8.00961153]
[1744781685586,14.55616863,124.87,124.85,8.00961153]
[1744781686085,8.06877178,124.91,124.85,8.00961153]
[1744781686293,14.55616863,124.88,124.85,8.00961153]
[1744781686485,14.55616863,124.88,124.83,8.07389481]
[1744781687489,14.55616863,124.87,124.83,8.07389481]
[1744781688089,14.55616863,124.88,124.83,42.65730048]
[1744781689089,14.55616863,124.9,124.85,14.55616863]
[1744781689280,0.063,124.91,124.88,14.55616863]
[1744781689477,0.063,124.91,124.9,14.55616863]
[1744781690786,0.063,124.91,124.9,41.21222261]
[1744781694592,0.063,124.92,124.9,67.21222261]
[1744781694797,0.063,124.92,124.91,14.55616863]
[1744781695982,1e-08,124.92,124.91,14.55616863]
[1744781696196,1e-08,124.92,124.91,22.56193278]
[1744781697482,1e-08,124.92,124.91,41.21158164]
[1744781698877,1e-08,124.94,124.91,61.22599201]
[1744781699107,1e-08,124.95,124.94,18.64964886]
[1744781699283,1e-08,124.95,124.94,49.12581749]
[1744781700190,1e-08,124.95,124.94,57.12965933]
[1744781700388,1e-08,124.95,124.94,42.5734907]
[1744781700611,1e-08,124.95,124.94,8.00384184]
[1744781701921,1e-08,124.95,124.94,26.6534907]
[1744781702086,1e-08,124.95,124.94,41.20965933]
[1744781702816,0.1958814,124.97,124.95,1.6375]
[1744781703008,1e-08,125.0,124.99,18.64964886]
[1744781703207,1e-08,125.0,124.99,49.12581749]
[1744781704217,1e-08,125.0,124.99,42.57028891]
[1744781704397,1e-08,125.0,124.99,57.12645754]
[1744781708317,1e-08,125.0,124.99,83.12645754]
[1744781708699,0.03,125.03,124.99,83.12645754]
[1744781708700,0.03,125.03,125.02,44.64964886]
[1744781709205,0.03,125.03,125.0,59.20581749]
[1744781709409,0.03,125.03,124.99,43.92224017]
[1744781709624,0.03,125.03,124.99,58.4784088]
[1744781710320,0.03,125.03,125.01,14.55616863]
[1744781710708,0.03,125.03,125.02,33.20581749]
[1744781711411,0.03,125.03,125.02,14.55616863]
[1744781711615,0.03,125.03,125.02,7.9987202]
[1744781711813,0.03,125.03,125.01,7.99925434]
[1744781713499,0.03,125.03,125.0,7.99969231]
[1744781714834,0.03,125.03,125.0,22.55586094]
[1744781715024,0.03,125.03,125.02,14.55616863]
[1744781716530,0.03,125.03,125.0,7.99969231]
[1744781716735,0.03,125.03,125.0,22.55586094]
[1744781717026,0.03,125.03,125.0,42.55586094]
[1744781717432,0.03,125.03,125.02,14.55616863]
[1744781717797,0.03,125.03,125.0,27.99969231]
[1744781718001,14.58616863,125.03,124.99,23.92043294]
[1744781718238,14.55616863,125.01,124.99,15.92]
[1744781718416,7.8075,125.03,124.96,257.56234434]
[1744781718617,14.55616863,125.01,124.96,272.11851297]
[1744781719116,15.80586994,125.03,124.96,272.11851297]
[1744781719328,14.55616863,125.01,124.96,272.11851297]
[1744781721518,14.55616863,125.0,124.96,257.56234434]
[1744781721830,14.55616863,124.98,124.95,34.00311398]
[1744781722336,33.8075,125.03,124.97,14.55616863]
[1744781722505,33.8075,125.03,124.96,18.64964886]
[1744781722506,48.36366863,125.03,124.98,14.55616863]
[1744781722706,42.15466863,125.03,124.98,14.55616863]
[1744781722929,14.55616863,125.02,124.97,14.55616863]
[1744781723311,0.03,125.03,124.99,14.55616863]
[1744781723507,0.03,125.03,125.0,14.55616863]
[1744781723935,0.03,125.03,125.0,8.0]
[1744781723936,14.58616863,125.03,125.0,8.0]
[1744781724934,14.58616863,125.03,124.96,38.65564198]
[1744781724935,14.55616863,125.01,124.96,38.65564198]
[1744781725237,14.55616863,125.02,124.97,14.55616863]
[1744781725443,0.03,125.03,125.0,14.55616863]
[1744781725735,14.55616863,125.02,124.97,28.00672161]
[1744781725911,14.55616863,125.02,124.97,42.56289024]
[1744781726311,0.03,125.03,124.98,14.55616863]
[1744781726510,0.03,125.03,124.99,14.55616863]
[1744781727259,0.03,125.03,125.0,14.55616863]
[1744781727733,0.03,125.03,124.98,18.64964886]
[1744781727930,0.03,125.03,125.01,7.99936005]
[1744781728748,0.03,125.03,125.01,22.55552868]
[1744781729615,0.03,125.03,125.02,14.55616863]
[1744781730031,0.03,125.03,125.02,7.9987202]
[1744781730221,0.03,125.03,125.01,7.99931154]
[1744781730423,0.03,125.03,124.97,20.0047373]
[1744781730641,14.58616863,125.03,124.98,14.55616863]
[1744781731319,0.03,125.03,124.99,14.55616863]
[1744781731530,14.55616863,125.02,124.96,52.65220967]
[1744781731854,0.03,125.03,124.96,41.2083783]
[1744781731855,14.55616863,125.01,124.96,41.2083783]
[1744781732352,14.55616863,125.01,124.96,22.55872944]
[1744781732524,14.55616863,124.97,124.94,15.9]
[1744781732941,14.55616863,124.98,124.94,15.9]
[1744781733455,14.55616863,124.98,124.94,23.90376272]
[1744781734251,14.55616863,124.97,124.94,23.90376272]
[1744781734548,16.22697652,125.0,124.94,23.90376272]
[1744781734767,14.55616863,124.99,124.94,38.45993135]
[1744781734961,22.78286863,125.0,124.94,38.45993135]
[1744781735249,14.55616863,125.01,124.96,14.55616863]
[1744781735756,7.99897819,125.02,124.97,8.00192046]
[1744781736054,14.55616863,125.01,124.97,8.00192046]
[1744781736552,14.55616863,124.99,124.96,8.00256081]
[1744781736845,7.99897819,125.02,124.96,8.00256081]
[1744781737064,14.55616863,125.02,124.97,14.55616863]
[1744781737226,42.23456863,125.03,124.98,14.55616863]
[1744781737561,0.03,125.03,124.99,14.55616863]
[1744781737741,0.03,125.03,125.0,22.55616863]
[1744781737933,0.03,125.03,125.02,14.55616863]
[1744781738247,0.03,125.03,125.01,14.55616863]
[1744781738632,0.03,125.03,125.02,14.55616863]
[1744781739137,0.03,125.09,125.08,26.0]
[1744781739347,0.03,125.13,125.08,49.08581749]
[1744781739551,0.03,125.13,125.09,18.64964886]
[1744781739754,0.03,125.13,125.11,7.99296618]
[1744781740332,0.03,125.13,125.11,22.54913481]
[1744781740649,0.03,125.13,125.12,14.55616863]
[1744781741152,0.03,125.13,125.12,23.17054828]
[1744781741733,0.03,125.13,125.11,18.64964886]
[1744781741933,0.03,125.13,125.12,23.17054828]
[1744781743858,0.03,125.13,125.12,31.16287564]
[1744781744034,0.03,125.13,125.12,7.99232736]
[1744781744359,0.03,125.13,125.12,31.16287564]
[1744781746146,0.03,125.13,125.12,7.99232736]
[1744781746347,0.03,125.13,125.1,7.99360511]
[1744781746556,0.03,125.13,125.1,31.16415339]
[1744781746757,0.03,125.13,125.11,23.17054828]
[1744781747459,0.03,125.13,125.1,31.16415339]
[1744781747834,0.03,125.13,125.12,7.99232736]
[1744781749247,0.03,125.13,125.12,31.16287564]
[1744781750047,0.03,125.13,125.12,75.8125245]
[1744781754037,9.53238126,125.21,125.13,18.64964886]
[1744781754238,23.17054828,125.19,125.14,39.01054828]
[1744781755167,1.5456,125.21,125.16,23.17054828]
[1744781755337,24.71614828,125.21,125.16,23.17054828]
[1744781755958,1.5456,125.21,125.16,23.17054828]
[1744781756154,28.8911136,125.22,125.16,23.17054828]
[1744781756344,0.03,125.19,125.17,23.17054828]
[1744781757047,0.03,125.19,125.18,7.98849656]
[1744781758548,0.03,125.19,125.18,49.8086937]
[1744781758752,0.03,125.19,125.18,7.98849656]
[1744781759254,0.03,125.19,125.18,49.8086937]
[1744781760471,0.03,125.19,125.18,7.98849656]
[1744781760972,0.03,125.19,125.16,7.9895069]
[1744781761144,0.03,125.19,125.16,41.82019714]
[1744781761352,0.03,125.19,125.18,23.17054828]
[1744781761563,0.03,125.19,125.18,41.82019714]
[1744781762777,0.03,125.19,125.15,23.17054828]
[1744781762960,23.20054828,125.19,125.14,49.81098261]
[1744781763165,22.49473345,125.19,125.14,26.64043433]
[1744781763349,14.50685207,125.19,125.14,41.1172864]
[1744781763549,0.03,125.19,125.15,14.47685207]
[1744781763877,14.47685207,125.18,125.14,26.64043433]
[1744781764075,14.50685207,125.19,125.14,41.1172864]
[1744781764799,14.47685207,125.18,125.13,38.28827272]
[1744781765069,14.47685207,125.17,125.13,23.81142065]
[1744781765576,22.46540744,125.18,125.13,38.28827272]
[1744781766477,0.03,125.19,125.15,14.47685207]
[1744781767250,14.47685207,125.18,125.13,23.81142065]
[1744781767462,14.47685207,125.18,125.13,38.28827272]
[1744781767969,14.47685207,125.16,125.13,15.82]
[1744781768276,14.47685207,125.17,125.13,15.82]
[1744781768670,14.47685207,125.17,125.13,23.81166326]
[1744781769170,14.47685207,125.17,125.13,7.99166326]
[1744781769781,14.47685207,125.16,125.12,7.99203386]
[1744781770165,14.47685207,125.15,125.11,7.9926868]
[1744781770492,14.47685207,125.14,125.09,30.29685207]
[1744781770684,14.47685207,125.13,125.09,23.81416293]
[1744781770868,7.98913477,125.17,125.11,14.47685207]
[1744781771069,14.47685207,125.16,125.11,14.47685207]
[1744781771287,22.46598684,125.17,125.12,14.47685207]
[1744781771878,9.62298109,125.18,125.13,14.47685207]
[1744781772186,16.11105207,125.18,125.13,14.47685207]
[1744781772489,48.49506195,125.19,125.14,14.47685207]
[1744781772678,0.03,125.19,125.15,22.46726357]
[1744781772869,0.03,125.19,125.16,14.47685207]
[1744781773060,0.03,125.19,125.15,22.46726357]
[1744781773772,14.50685207,125.19,125.15,7.9904115]
[1744781774492,0.03,125.19,125.15,22.46726357]
[1744781774806,14.50685207,125.19,125.15,7.9904115]
[1744781775768,14.47685207,125.18,125.14,7.99085535]
[1744781776093,14.50685207,125.19,125.14,22.46770742]
[1744781776683,14.50685207,125.19,125.15,14.47685207]
[1744781776868,14.50685207,125.19,125.15,22.46675]
[1744781777070,14.47685207,125.18,125.13,14.47685207]
[1744781777302,22.49485822,125.19,125.14,14.47685207]
[1744781777993,14.50685207,125.19,125.14,14.47685207]
[1744781778295,0.03,125.19,125.14,14.47685207]
[1744781778501,14.50685207,125.19,125.14,14.47685207]
[1744781779000,14.47685207,125.18,125.13,14.47685207]
[1744781779177,14.47685207,125.17,125.12,7.99232736]
[1744781779372,14.47685207,125.15,125.11,7.99275504]
[1744781779689,14.47685207,125.16,125.11,22.46960711]
[1744781779867,14.47685207,125.15,125.11,7.99275504]
[1744781780489,22.46702961,125.16,125.11,22.46960711]
[1744781781098,22.46627934,125.17,125.12,14.47685207]
[1744781781897,14.47685207,125.16,125.11,22.46960711]
[1744781783296,14.47685207,125.15,125.11,22.46960711]
[1744781783997,22.46688915,125.16,125.11,22.46960711]
[1744781784695,7.98913477,125.17,125.11,22.46960711]
[1744781784997,14.47685207,125.16,125.11,22.46960711]
[1744781785795,2.8911136,125.22,125.15,79.02370414]
[1744781786091,2.8911136,125.22,125.21,33.12650093]
[1744781786800,2.8911136,125.22,125.21,41.11308347]
[1744781787274,2.8911136,125.22,125.21,45.76066335]
[1744781788976,1e-08,125.22,125.21,45.76066335]
[1744781789810,0.03,125.25,125.24,33.12650093]
[1744781790093,0.03,125.25,125.24,37.77408081]
[1744781790986,0.03,125.25,125.24,45.75875024]
[1744781791588,14.47685207,125.34,125.25,18.64964886]
[1744781791803,14.47685207,125.34,125.25,33.12650093]
[1744781791981,0.03,125.31,125.25,33.12650093]
[1744781792378,0.03,125.31,125.26,44.64964886]
[1744781792592,0.03,125.31,125.3,14.47685207]
[1744781792979,0.03,125.31,125.3,22.45769803]
[1744781793494,0.03,125.31,125.3,41.10734689]
[1744781794200,0.03,125.31,125.3,22.45769803]
[1744781794612,0.03,125.32,125.31,18.64964886]
[1744781794791,0.03,125.32,125.31,33.12650093]
[1744781794992,0.03,125.32,125.31,41.10671001]
[1744781795197,0.03,125.32,125.31,49.72182354]
[1744781796305,0.03,125.32,125.3,7.98067441]
[1744781796606,0.03,125.32,125.3,31.07264001]
[1744781796910,0.03,125.32,125.31,31.07217468]
[1744781798593,23.53,125.32,125.31,31.07217468]
[1744781798802,23.53,125.32,125.31,49.72182354]
[1744781799310,0.03,125.39,125.35,18.64964886]
[1744781799512,0.03,125.39,125.37,23.0919656]
[1744781799711,0.03,125.39,125.38,41.74161446]
[1744781800214,0.03,125.39,125.38,49.71736816]
[1744781800412,0.03,125.39,125.35,7.97766254]
[1744781800611,0.03,125.39,125.36,41.74161446]
[1744781800816,0.03,125.39,125.38,41.74161446]
[1744781802329,0.03,125.39,125.38,49.71736816]
[1744781805116,0.03,125.39,125.38,26.62540256]
[1744781805312,0.03,125.39,125.38,49.71736816]
[1744781805613,0.03,125.39,125.38,26.62540256]
[1744781805812,0.03,125.39,125.38,49.71736816]
[1744781809729,0.03,125.45,125.41,18.64964886]
[1744781809904,0.03,125.45,125.44,41.74161446]
[1744781810224,0.03,125.45,125.44,49.71355323]
[1744781810800,0.03,125.45,125.41,7.97384578]
[1744781811116,0.03,125.45,125.43,18.64964886]
[1744781811324,0.03,125.45,125.42,23.0919656]
[1744781811697,0.03,125.45,125.43,23.0919656]
[1744781812353,0.03,125.45,125.43,31.06438769]
[1744781812501,0.03,125.45,125.44,41.74161446]
[1744781813844,0.03,125.45,125.44,18.64964886]
[1744781814215,0.03,125.45,125.44,64.83358006]
[1744781814420,0.03,125.45,125.44,100.40631883]
[1744781814641,1e-08,125.45,125.44,74.40631883]
[1744781814846,1e-08,125.45,125.44,80.44631883]
[1744781815139,1e-08,125.45,125.44,163.44631883]
[1744781816948,0.03,125.51,125.46,44.64964886]
[1744781817122,0.03,125.51,125.5,41.74161446]
[1744781818644,0.03,125.51,125.5,26.61777635]
[1744781818841,0.03,125.51,125.5,18.64964886]
[1744781819038,0.03,125.51,125.5,49.70974195]
[1744781819247,0.03,125.51,125.5,26.61777635]
[1744781819551,0.03,125.51,125.49,31.06055138]
[1744781819722,0.03,125.51,125.49,7.96858578]
[1744781819927,0.03,125.51,125.49,31.06055138]
[1744781820354,0.03,125.51,125.49,7.96858578]
[1744781820653,0.03,125.51,125.48,49.71074397]
[1744781821062,23.1219656,125.51,125.47,16.36]
[1744781821257,23.1219656,125.51,125.42,19.93156003]
[1744781821258,23.0919656,125.48,125.43,7.97257434]
[1744781821559,1.5052,125.5,125.45,23.0919656]
[1744781821855,0.03,125.51,125.48,18.64964886]
[1744781822157,0.03,125.51,125.48,41.74161446]
[1744781822367,0.03,125.51,125.46,18.64964886]
[1744781822657,0.03,125.51,125.48,31.06120326]
[1744781823158,0.03,125.51,125.48,22.3680045]
[1744781823533,0.03,125.51,125.49,33.0484157]
[1744781824744,0.03,125.51,125.49,41.01679762]
[1744781824947,0.03,125.51,125.49,26.61803078]
[1744781825452,0.03,125.51,125.48,7.96928414]
[1744781828156,0.03,125.51,125.49,33.0484157]
[1744781828564,0.03,125.51,125.49,41.01674575]
[1744781830934,0.03,125.51,125.49,26.61797891]
[1744781831747,14.42876684,125.51,125.46,26.6203168]
[1744781832059,14.42876684,125.51,125.46,41.01908364]
[1744781832459,14.42876684,125.51,125.47,14.39876684]
[1744781832654,14.42876684,125.51,125.46,41.01908364]
[1744781833042,14.39876684,125.49,125.45,18.64964886]
[1744781833347,14.39876684,125.5,125.45,33.0484157]
[1744781833868,20.47366684,125.51,125.47,14.39876684]
[1744781834067,28.44132724,125.51,125.46,14.39876684]
[1744781834372,14.39876684,125.5,125.46,14.39876684]
[1744781835071,14.39876684,125.5,125.47,26.61968153]
[1744781835272,0.03,125.52,125.5,18.64964886]
[1744781835474,1.5432,125.58,125.51,33.0484157]
[1744781835652,15.94196684,125.58,125.53,14.39876684]
[1744781835852,14.39876684,125.57,125.53,18.64964886]
[1744781836366,15.94196684,125.58,125.53,18.64964886]
[1744781836673,15.94196684,125.58,125.53,14.39876684]
[1744781836869,1.5432,125.58,125.53,14.39876684]
[1744781837164,14.39876684,125.57,125.53,18.64964886]
[1744781837668,14.39876684,125.56,125.52,18.64964886]
[1744781837852,1.5432,125.58,125.53,14.39876684]
[1744781838043,15.94196684,125.58,125.53,14.39876684]
[1744781838243,1.5432,125.58,125.55,18.64964886]
[1744781838450,6.1943,125.59,125.55,33.0484157]
[1744781838653,20.59306684,125.59,125.55,18.64964886]
[1744781838967,20.59306684,125.59,125.51,27.8862242]
[1744781838968,14.39876684,125.58,125.53,14.39876684]
[1744781839143,14.39876684,125.57,125.53,7.96622321]
[1744781840063,14.15671738,125.59,125.53,7.96622321]
[1744781840270,14.39876684,125.57,125.53,7.96622321]
[1744781842468,14.1569786,125.59,125.54,33.0484157]
[1744781842469,20.59306684,125.59,125.54,33.0484157]
[1744781843163,40.39876684,125.6,125.55,14.39876684]
[1744781843361,14.39876684,125.59,125.55,7.9649542]
[1744781844373,40.39876684,125.6,125.55,22.36372104]
[1744781844680,40.39876684,125.6,125.55,7.9649542]
[1744781844865,14.39876684,125.58,125.55,7.9649542]
[1744781846678,33.96212209,125.6,125.55,7.9649542]
[1744781846857,14.39876684,125.59,125.55,7.9649542]
[1744781847055,14.39876684,125.56,125.52,14.39876684]
[1744781847255,14.39876684,125.53,125.45,6.4662]
[1744781847556,14.39876684,125.51,125.47,7.97003267]
[1744781847955,14.39876684,125.5,125.46,22.36919489]
[1744781848170,14.39876684,125.49,125.44,16.94]
[1744781848359,14.39876684,125.48,125.44,14.39876684]
[1744781849076,14.39876684,125.49,125.45,4.6164747]
[1744781849280,26.0,125.53,125.45,27.66838601]
[1744781849482,26.0,125.53,125.45,4.6164747]
[1744781849483,23.05191131,125.48,125.45,4.6164747]
[1744781849776,1.6171,125.49,125.42,23.05191131]
[1744781849984,1.6171,125.49,125.44,23.05191131]
[1744781850279,24.66901131,125.49,125.45,23.05191131]
[1744781850576,1.6171,125.49,125.44,23.05191131]
[1744781850751,24.66901131,125.49,125.44,23.05191131]
[1744781851154,23.05191131,125.47,125.42,23.05191131]
[1744781851360,23.05191131,125.46,125.42,18.64964886]
[1744781851564,23.05191131,125.46,125.42,49.67468247]
[1744781851783,31.02220765,125.47,125.42,49.67468247]
[1744781852856,7.96939751,125.48,125.44,23.05191131]
[1744781853284,31.02130882,125.48,125.42,26.62277116]
[1744781853576,23.05191131,125.46,125.42,26.62277116]
[1744781853775,23.05191131,125.46,125.41,31.08849792]
[1744781853964,7.96939751,125.48,125.42,41.70156017]
[1744781854154,23.05191131,125.47,125.42,41.70156017]
[1744781855079,31.02213485,125.47,125.42,7.97294555]
[1744781855269,23.05191131,125.46,125.42,7.97294555]
[1744781855469,23.05191131,125.46,125.41,31.08852199]
[1744781855782,31.02213485,125.47,125.42,23.05191131]
[1744781857083,23.05191131,125.46,125.42,31.02481057]
[1744781857382,23.05191131,125.45,125.42,7.97289926]
[1744781858080,26.0,125.5,125.41,23.11491131]
[1744781858261,7.96876245,125.49,125.41,31.08871652]
[1744781858457,23.05191131,125.46,125.41,31.08871652]
[1744781859080,23.05191131,125.46,125.42,41.70156017]
[1744781859284,23.05191131,125.46,125.41,31.08871652]
[1744781860482,23.05191131,125.46,125.42,23.05191131]
[1744781861186,23.05191131,125.46,125.41,31.08871652]
[1744781861870,23.05191131,125.46,125.42,23.05191131]
[1744781862784,7.96898704,125.49,125.43,23.05191131]
[1744781862988,7.96898704,125.49,125.44,23.05191131]
[1744781863280,23.05191131,125.46,125.42,41.70156017]
[1744781863489,23.05191131,125.46,125.42,18.64964886]
[1744781864278,23.05191131,125.46,125.42,49.67415784]
[1744781865185,7.9701873,125.47,125.42,49.67415784]
[1744781865388,23.05191131,125.46,125.42,49.67415784]
[1744781866466,7.9701873,125.47,125.42,26.62224653]
[1744781866668,23.05191131,125.46,125.42,49.67415784]
[1744781867787,26.0,125.48,125.42,49.67415784]
[1744781867976,23.05191131,125.47,125.43,23.05191131]
[1744781868291,23.05191131,125.47,125.42,49.67415784]
[1744781868763,23.05191131,125.47,125.42,26.62224653]
[1744781868964,23.05191131,125.47,125.42,49.67415784]
[1744781869261,49.05191131,125.48,125.43,23.05191131]
[1744781869558,49.05191131,125.48,125.42,26.62224653]
[1744781869757,23.05191131,125.47,125.43,23.05191131]
[1744781869990,23.05191131,125.48,125.43,23.05191131]
[1744781870288,7.96915243,125.49,125.43,23.05191131]
[1744781870472,23.05191131,125.48,125.43,23.05191131]
[1744781870883,23.05191131,125.47,125.43,31.02398902]
[1744781871184,14.4105893,125.47,125.43,22.38266701]
[1744781872495,14.4105893,125.47,125.43,7.97207771]
[1744781872687,14.4105893,125.45,125.42,7.97300249]
[1744781874393,14.4105893,125.46,125.42,7.97300249]
[1744781874600,14.4105893,125.45,125.41,26.68618881]
[1744781874905,7.97029364,125.47,125.41,41.09677811]
[1744781875195,14.4105893,125.46,125.41,41.09677811]
[1744781876273,14.4105893,125.45,125.41,41.09677811]
[1744781876676,14.4105893,125.44,125.41,0.063]
[1744781876992,14.4105893,125.43,125.41,0.063]
[1744781877168,14.4105893,125.44,125.41,0.063]
[1744781877371,14.4105893,125.44,125.41,8.03673539]
[1744781878295,14.4105893,125.44,125.41,0.063]
[1744781879291,22.38258301,125.44,125.41,0.063]
[1744781879486,14.4105893,125.44,125.41,0.063]
[1744781879677,7.97158933,125.45,125.41,0.063]
[1744781879870,14.4105893,125.44,125.41,0.063]
[1744781880972,7.96939751,125.48,125.41,14.4735893]
[1744781881298,14.4105893,125.45,125.41,14.4735893]
[1744781882192,14.4105893,125.45,125.41,33.12323816]
[1744781882399,14.4105893,125.47,125.43,14.4105893]
[1744781882601,14.4105893,125.47,125.44,7.97193877]
[1744781883377,26.0,125.48,125.44,7.97193877]
[1744781883585,14.4105893,125.47,125.44,7.97193877]
[1744781884600,14.4105893,125.5,125.46,7.97066794]